[Event "20th Delhi GM Open 2023"]
[Site "New Delhi"]
[Date "2023.03.29"]
[Round "9.2"]
[White "Pantsulaia, Levan"]
[Black "Neelash Saha"]
[Result "1-0"]
[ECO "A07"]
[WhiteElo "2597"]
[BlackElo "2444"]
[Annotator "TA"]
[PlyCount "81"]
[EventDate "2023.03.23"]
[EventType "swiss"]
[EventCountry "IND"]
[SourceTitle "playchess.com"]
[Source "ChessBase"]
[SourceQuality "1"]
[TimeControl "5400+30"]

{[%evp 20,81,11,0,51,46,32,34,32,54,35,0,0,0,160,160,149,153,137,137,137,137,136,136,136,137,137,145,137,143,134,143,142,135,134,137,137,125,241,220,277,274,344,379,377,358,356,329,377,370,354,355,369,362,415,416,557,545,641,641,664,649,1779,1721]} 1. Nf3 {[%emt 0:00:06]} d5 {[%emt 0:00:08]} 2. g3 {[%emt 0:00:05]} g6 {[%emt 0:00:06]} 3. Bg2 {[%emt 0:00:36]} Bg7 {[%emt 0:00:19]} 4. O-O {[%emt 0:00:13]} e5 {[%emt 0:00:43]} 5. d3 {[%emt 0:00:11]} Nc6 {[%emt 0:00:31]} 6. c3 {[%emt 0:01:33]} a5 {[%emt 0:02:12]} 7. a4 {[%emt 0:00:10]} Nge7 {[%emt 0:00:54]} 8. Na3 {[%emt 0:03:16]} O-O {[%emt 0:01:23]} 9. e4 {[%emt 0:00:05]} h6 {[%emt 0:02:24]} 10. exd5 {[%emt 0:10:57]} Nxd5 {[%emt 0:00:13]} 11. Nc4 {[%emt 0:00:04]} Be6 {[%emt 0:05:02] A07: Réti Opening: New York and Capablanca Systems.} ({Better is} 11... Re8 $11) 12. Re1 $14 {[%emt 0:03:54][%cal Rf3e5]} f6 $1 {[%emt 0:00:17] [#]} 13. d4 $146 {[%emt 0:19:43][%cal Rd4e5]} ({Predecessor:} 13. Qc2 Nde7 14. Be3 b6 15. Rad1 Qe8 16. Bc1 Qf7 17. b3 Bd5 18. Ba3 Rfd8 19. Qe2 {0-1 Gevorgyan,D (2141)-Feller,S (2513) Wch U20 46th 2007 (12)}) 13... Nxc3 {[%emt 0:01:55][%mdl 64] Discovered Attack. White is slightly better.} 14. bxc3 {[%emt 0:01:03]} (14. Qd3 Nd5 15. Bxh6 (15. Qxg6 Nde7 $15) 15... Bf5 $11) 14... Bxc4 {[%emt 0:00:07]} 15. Ba3 {[%emt 0:00:06]} Re8 {[%emt 0:02:49]} 16. Qb1 {[%emt 0:00:05][%csl LRb7,LRg6]} e4 $2 {[%emt 0:18:15] Black is on the road to losing.} (16... exd4 $11 17. Qxb7 Qd7 18. Nxd4 Rxe1+ 19. Rxe1 Re8) 17. Nd2 $16 {[%emt 0:02:40][%cal Bf3d2,Bd2e4,Be4c5][%mdl 32]} Bd5 {[%emt 0:09:00]} 18. Nxe4 {[%emt 0:06:15]} (18. Bxe4 $6 f5 19. Bxd5+ Qxd5 $14) 18... Kh8 {[%emt 0:00:05]} 19. Qb5 {[%emt 0:07:09][%cal Oe4f6] Strongly threatening Nxf6!} Na7 {[%emt 0:05:52]} 20. Qd3 {[%emt 0:00:08][%cal Oe4d6] White has more active pieces.} (20. Qxa5 $6 b6 21. Qa6 Nc8 $16) 20... Bc6 {[%emt 0:04:47]} 21. Nc5 {[%emt 0:00:31][%csl LRb7,LRg6]} Bxg2 {[%emt 0:01:59]} 22. Kxg2 {[%emt 0:00:16][%cal Bg1g2,Bg2f3,Bf3g4][%mdl 32]} Qd5+ {[%emt 0:00:04] [#]} 23. Qf3 $1 {[%emt 0:04:56]} Qxf3+ {[%emt 0:00:05]} 24. Kxf3 {[%emt 0:00:04]} Rxe1 {[%emt 0:00:06]} 25. Rxe1 {[%emt 0:00:04]} Bf8 {[%emt 0:00:03] [#]} 26. Bc1 $1 {[%emt 0:00:04]} Bxc5 {[%emt 0:01:05]} 27. dxc5 {[%emt 0:00:01][%mdl 4096] Endgame KRB-KRN} Nc6 {[%emt 0:00:06]} 28. Bxh6 {[%emt 0:00:35]} g5 {[%emt 0:08:02]} (28... Ne5+ $16 29. Kg2 Kg8) 29. Kg4 $18 {[%emt 0:00:36]} Kh7 {[%emt 0:00:13]} 30. Kh5 {[%emt 0:00:08]} Rd8 {[%emt 0:00:28]} 31. Re6 {[%emt 0:05:34]} Rd5 {[%emt 0:03:14] Hoping for ...g4+.} 32. Rxf6 {[%emt 0:00:00] And now Rf7+ would win.} g4+ {[%emt 0:00:16]} 33. Bg5 {[%emt 0:00:35]} ({Inferior is} 33. Kxg4 Ne5+ 34. Kf4 Nd7 $11) 33... Kg7 {[%emt 0:00:08]} 34. Rf4 {[%emt 0:04:10]} ({Don't take} 34. Kxg4 Ne5+ 35. Kh5 Nf7 $18) 34... Rxc5 {[%emt 0:05:09]} 35. Rxg4 {[%emt 0:00:07]} ({Not} 35. Kxg4 Ne5+ 36. Kh5 Nd7 $18) 35... Ne7 {[%emt 0:01:27]} 36. Rf4 {[%emt 0:03:02]} c6 {[%emt 0:04:16]} 37. c4 {[%emt 0:01:43] aiming for Rd4.} Nc8 {[%emt 0:00:13]} 38. h4 {[%emt 0:00:21] White is clearly winning.} Nb6 {[%emt 0:04:22]} 39. Re4 {[%emt 0:00:15]} Rf5 {[%emt 0:01:50]} 40. f4 {[%emt 0:03:53] Threatens to win with g4.} Nxa4 {[%emt 0:00:46]} 41. g4 {[%emt 0:00:33] Weighted Error Value: White=0.02 (flawless) /Black=0.26 (precise)} 1-0

[Event "20th Delhi GM Open 2023"]
[Site "New Delhi"]
[Date "2023.03.29"]
[Round "9.3"]
[White "Deepan Chakkravarthy J."]
[Black "Mchedlishvili, Mikheil"]
[Result "1/2-1/2"]
[ECO "C67"]
[WhiteElo "2432"]
[BlackElo "2569"]
[Annotator "TA"]
[PlyCount "29"]
[EventDate "2023.03.23"]
[EventType "swiss"]
[EventCountry "IND"]
[SourceTitle "playchess.com"]
[Source "ChessBase"]
[SourceQuality "1"]
[TimeControl "5400+30"]

{[%evp 27,29,0,6,0]} 1. e4 {[%emt 0:00:03]} e5 {[%emt 0:00:11]} 2. Nf3 {[%emt 0:00:15]} Nc6 {[%emt 0:00:25]} 3. Bb5 {[%emt 0:00:17]} Nf6 {[%emt 0:00:34]} 4. O-O {[%emt 0:00:29]} Nxe4 {[%emt 0:00:56]} 5. d4 {[%emt 0:00:38][%cal Bd2d4,Bd4e5][%mdl 32]} Nd6 {[%emt 0:00:40]} 6. dxe5 {[%emt 0:00:57]} Nxb5 {[%emt 0:00:32]} 7. a4 {[%emt 0:00:03]} Nbd4 {[%emt 0:00:51]} 8. Nxd4 {[%emt 0:00:19]} Nxd4 {[%emt 0:00:38]} 9. Qxd4 {[%emt 0:00:27]} d5 {[%emt 0:00:36]} 10. exd6 {[%emt 0:00:27]} Qxd6 {[%emt 0:00:18]} 11. Qe4+ {[%emt 0:00:13]} Qe6 {[%emt 0:00:09]} 12. Qd4 {[%emt 0:00:11]} Qd6 {[%emt 0:00:13]} 13. Qe4+ {[%emt 0:00:23]} Qe6 {[%emt 0:00:07]} 14. Qd4 {[%emt 0:00:05] [#]} Qd6 $146 {[%emt 0:00:06]} ({Predecessor:} 14... f6 15. Nc3 c6 16. Bf4 Kf7 17. Rad1 Qf5 18. Rfe1 Be6 19. Bd6 Rd8 20. Ne4 Bd5 21. Ng3 Qxc2 22. Bxf8 Rhxf8 23. Qxa7 {0-1 Vokhidov,S (2601)-Nakamura,H (2768) Titled Tuesday intern op 14th Feb Early blitz 2023 (8)}) 15. Qe4+ {[%emt 0:01:20] Not much happened in this game.  C67: Ruy Lopez: Berlin Defence: 4 0-0 Nxe4.} 1/2-1/2

[Event "20th Delhi GM Open 2023"]
[Site "New Delhi"]
[Date "2023.03.29"]
[Round "9.4"]
[White "Stupak, Kirill"]
[Black "Savchenko, Boris"]
[Result "0-1"]
[ECO "A32"]
[WhiteElo "2413"]
[BlackElo "2552"]
[Annotator "TA"]
[PlyCount "64"]
[EventDate "2023.03.23"]
[EventType "swiss"]
[EventCountry "IND"]
[SourceTitle "playchess.com"]
[Source "ChessBase"]
[SourceQuality "1"]
[TimeControl "5400+30"]

{[%evp 14,64,0,0,0,0,18,22,10,19,33,38,90,87,89,87,68,76,81,63,68,-14,-12,-16,-11,-25,-22,-15,-12,-9,-13,-102,-116,-183,-186,-180,-189,-168,-145,-267,-289,-275,-277,-283,-280,-389,-399,-482,-397,-427,-396,-766,-733]} 1. d4 {[%emt 0:00:01]} e6 {[%emt 0:08:59]} 2. g3 {[%emt 0:00:50]} c5 {[%emt 0:04:15]} 3. Nf3 {[%emt 0:00:04][%cal Bg1f3,Bf3d4,Bd4b3,Bb3d2][%mdl 32]} Nf6 {[%emt 0:00:40]} 4. c4 {[%emt 0:00:57]} cxd4 {[%emt 0:06:57]} 5. Nxd4 {[%emt 0:03:45]} Qc7 {[%emt 0:00:50]} 6. Nc3 {[%emt 0:03:11]} a6 {[%emt 0:01:12]} 7. Bg2 {[%emt 0:00:39]} Qxc4 {[%emt 0:00:09]} 8. Bf4 {[%emt 0:00:08] And now Rc1 would win.} Nc6 {[%emt 0:02:37] A32: Symmetrical English: 2 Nf3 Nf6 3 d4 cxd4 4 Nxd4 e6.} 9. Nb3 {[%emt 0:00:05]} Bb4 $5 {[%emt 0:01:37][%mdl 4] An interesting side line.} 10. O-O {[%emt 0:03:31]} (10. Rc1 {feels hotter.} Ne4 11. Nd2 Bxc3 12. O-O) 10... Bxc3 {[%emt 0:10:57] [#] The position is equal.} 11. bxc3 $146 {[%emt 0:09:06]} ({Predecessor:} 11. Rc1 Ne4 12. Bxe4 Qxe4 13. Rxc3 d5 14. Nc5 Qf5 15. Na4 e5 16. Nb6 Rb8 17. Nxc8 {½-½ Gelfand,B (2717)-Pantsulaia,L (2578) FIDE World Cup 2005 (3.1)}) 11... d5 {[%emt 0:11:41]} 12. Bd6 {[%emt 0:03:33]} e5 {[%emt 0:05:39]} (12... Qxc3 $2 13. Rc1 Qb2 14. Rc2 $18) (12... Bd7 $14) 13. Nd2 $16 {[%emt 0:22:12]} Qxc3 {[%emt 0:00:50]} 14. Nb3 $1 {[%emt 0:00:03] Hoping for Rc1.} Qc4 {[%emt 0:04:18]} 15. Rc1 {[%emt 0:00:07]} Qg4 {[%emt 0:09:13] [#]} 16. Nc5 $1 {[%emt 0:05:20]} h5 $1 {[%emt 0:01:42]} 17. Bxd5 {[%emt 0:17:24]} (17. h4 $14) 17... Nxd5 $11 {[%emt 0:07:40]} 18. Qxd5 {[%emt 0:00:59]} Qd4 $36 {[%emt 0:00:35][%mdl 2048] Black is more active.} 19. Qxd4 {[%emt 0:02:10]} Nxd4 {[%emt 0:00:16]} 20. Rfe1 {[%emt 0:00:05]} Nc6 {[%emt 0:08:36][%cal Bd4c6,Bc6d4,Bd4e2][%mdl 32]} 21. Red1 {[%emt 0:05:21]} f6 {[%emt 0:00:37]} 22. a4 {[%emt 0:02:32] [#]} (22. f4 $11) 22... Nd4 $1 $17 {[%emt 0:00:56]} 23. Kg2 {[%emt 0:02:47]} (23. Kf1 $17) 23... Nxe2 $19 {[%emt 0:01:33]} 24. Rc2 {[%emt 0:00:01]} Nd4 {[%emt 0:01:03]} 25. Rb2 {[%emt 0:00:01]} h4 {[%emt 0:02:18]} 26. f3 {[%emt 0:02:50]} (26. f4 $17) 26... hxg3 {[%emt 0:01:59]} 27. hxg3 {[%emt 0:00:01]} Bh3+ {[%emt 0:00:40]} 28. Kf2 {[%emt 0:02:45]} Rd8 {[%emt 0:02:45]} 29. Bc7 {[%emt 0:01:37]} Rd5 {[%emt 0:00:24]} 30. Nd3 {[%emt 0:02:59]} Bf5 {[%emt 0:01:20]} 31. Ke3 {[%emt 0:00:11]} Rh3 {[%emt 0:00:44]} 32. Nb4 $2 {[%emt 0:00:58] [#]} (32. Bb6) 32... Nc2+ $1 {[%emt 0:00:16][%mdl 576] Discovered Attack.   Weighted Error Value: White=0.52/Black=0.09 (flawless)} 0-1

[Event "20th Delhi GM Open 2023"]
[Site "New Delhi"]
[Date "2023.03.29"]
[Round "9.5"]
[White "Anuj Shrivatri"]
[Black "Krasenkow, Michal"]
[Result "1/2-1/2"]
[ECO "A53"]
[WhiteElo "2407"]
[BlackElo "2527"]
[Annotator "TA"]
[PlyCount "174"]
[EventDate "2023.03.23"]
[EventType "swiss"]
[EventCountry "IND"]
[SourceTitle "playchess.com"]
[Source "ChessBase"]
[SourceQuality "1"]
[TimeControl "5400+30"]

{[%evp 13,174,34,41,22,35,33,24,18,37,33,54,40,63,50,88,80,73,46,62,44,74,85,81,29,20,24,91,0,28,24,14,0,-14,-23,-24,-52,-48,-46,-34,-37,0,-10,-18,-14,-3,-6,-7,-4,0,0,0,0,0,0,0,0,0,0,0,0,0,0,0,0,0,0,0,0,0,0,0,0,0,0,0,0,0,0,0,0,0,0,0,0,0,0,0,0,0,0,0,0,0,0,0,0,0,0,0,0,0,0,0,143,143,143,143,0,0,0,143,143,143,143,143,0,0,0,0,0,0,0,0,0,0,0,0,0,0,0,0,0,0,0,142,0,143,142,142,0,0,0,0,0,0,0,0,0,0,0,0,0,0,0,142,0,142,-8,-8,-8,-8,-8,-8]} 1. Nf3 {[%emt 0:00:20]} d6 {[%emt 0:00:06]} 2. d4 {[%emt 0:00:13]} Bg4 {[%emt 0:00:06]} 3. e3 {[%emt 0:01:36]} Nf6 {[%emt 0:00:19]} 4. c4 {[%emt 0:00:08]} Nbd7 {[%emt 0:00:09]} 5. Nc3 {[%emt 0:00:07]} c6 {[%emt 0:01:20]} 6. Be2 {[%emt 0:01:03]} e5 {[%emt 0:00:05]} 7. O-O {[%emt 0:00:15]} Be7 {[%emt 0:00:11]} 8. e4 {[%emt 0:03:53] A53: Old Indian Defence without Nf3.} O-O {[%emt 0:02:28]} 9. Be3 {[%emt 0:03:16]} a6 {[%emt 0:00:05]} 10. d5 {[%emt 0:06:38] White has an edge.} cxd5 {[%emt 0:00:36]} 11. cxd5 {[%emt 0:00:26]} b5 {[%emt 0:00:05]} 12. Nd2 {[%emt 0:01:33]} Bxe2 {[%emt 0:00:34]} 13. Qxe2 {[%emt 0:00:05]} Qb8 {[%emt 0:00:23] [#]} 14. Rfc1 $146 {[%emt 0:13:26] White is more active.} ({Predecessor:} 14. a4 b4 15. Na2 Rc8 16. Rfc1 Qb7 17. b3 Bd8 18. Rc4 a5 19. Rac1 Bb6 20. Rc6 Bxe3 21. Qxe3 {1-0 Dinstuhl,V (2412)-Neidhardt,C (2429) Bundesliga 0001 2000 (3.7)}) 14... Rc8 {[%emt 0:00:37]} 15. a3 {[%emt 0:10:04]} (15. a4 $5 {[%cal Ra4b5]}) 15... Qb7 {[%emt 0:07:33]} 16. Na2 {[%emt 0:02:24][%cal Bc3a2,Ba2c1,Bc1d3,Bd3b4,Bb4c6][%mdl 32]} (16. a4 $5 {[%cal Ra4b5]}) 16... a5 {[%emt 0:00:07]} 17. Rxc8+ {[%emt 0:07:22]} Rxc8 {[%emt 0:00:09]} 18. Rc1 {[%emt 0:00:04]} (18. Nc3 $16) 18... Rxc1+ $11 {[%emt 0:08:49]} 19. Nxc1 {[%emt 0:00:32]} Qc7 {[%emt 0:00:01]} (19... Nc5 $11) 20. Nf1 {[%emt 0:07:42]} (20. Na2 $1 $16) 20... b4 {[%emt 0:16:00]} 21. axb4 {[%emt 0:02:27]} Nxe4 {[%emt 0:01:41]} 22. Qb5 {[%emt 0:07:34]} axb4 {[%emt 0:01:46][%cal Ba5b4,Bb4b3][%mdl 32]} 23. Nd3 {[%emt 0:02:54] [#]} b3 $1 {[%emt 0:04:04]} 24. Nb4 {[%emt 0:05:27]} (24. Qxb3 Bf8) 24... Nec5 {[%emt 0:07:54]} 25. Nc6 {[%emt 0:03:41]} Bf8 {[%emt 0:01:29]} 26. Nd2 {[%emt 0:05:31]} Nf6 {[%emt 0:14:16]} 27. Bxc5 {[%emt 0:08:12]} dxc5 {[%emt 0:00:13]} 28. Qxb3 {[%emt 0:00:06]} (28. Nxb3 Qd6 29. Qb8 Nxd5 30. Qxd6 Bxd6 $17) 28... Qd6 {[%emt 0:00:34]} 29. Nc4 $1 {[%emt 0:00:20][%csl LRd6,LRe5]} Qxd5 {[%emt 0:00:08]} 30. N6xe5 {[%emt 0:00:10] A dynamic duo of knights.} Qe4 {[%emt 0:05:09][%cal Re4e1]} (30... Bd6 {simplifies} 31. Nd3 Ne4 32. Qc2 Bf8) 31. g3 {[%emt 0:00:47]} Ng4 {[%emt 0:03:58]} 32. Nxg4 {[%emt 0:00:58]} Qxg4 {[%emt 0:00:03][%mdl 4096] Endgame KQB-KQN} 33. Qd3 {[%emt 0:00:40]} Qe6 {[%emt 0:00:14]} 34. b3 {[%emt 0:01:11]} g6 {[%emt 0:01:26]} 35. Kg2 {[%emt 0:00:07]} h5 {[%emt 0:00:05]} 36. Qe3 {[%emt 0:00:08]} Qd5+ {[%emt 0:00:48]} 37. Qf3 {[%emt 0:00:06]} Qd7 {[%emt 0:00:07]} 38. h4 {[%emt 0:00:31]} Bg7 {[%emt 0:00:06]} 39. Qa8+ {[%emt 0:02:26]} Kh7 {[%emt 0:00:11]} 40. Qf3 {[%emt 0:00:11]} Bd4 {[%emt 0:00:05]} 41. Qe4 {[%emt 0:00:19]} Kg7 {[%emt 0:01:05]} 42. Qf3 {[%emt 0:00:05]} Qe6 {[%emt 0:00:06]} 43. Nd2 {[%emt 0:00:48]} Qf6 {[%emt 0:07:14]} 44. Ne4 {[%emt 0:01:58]} Qxf3+ {[%emt 0:00:10]} 45. Kxf3 {[%emt 0:00:04] KB-KN} Kf8 {[%emt 0:00:13]} 46. Ng5 {[%emt 0:00:27]} Ke7 {[%emt 0:00:10]} 47. Ke2 {[%emt 0:00:05]} f6 {[%emt 0:00:37]} 48. Nf3 {[%emt 0:01:00] Threatens to win with Nxd4.} Bc3 {[%emt 0:00:09]} 49. Kd3 {[%emt 0:01:25]} Bb4 {[%emt 0:02:04]} 50. Ng1 {[%emt 0:01:31]} Ke6 {[%emt 0:00:56]} 51. Ke4 {[%emt 0:01:07]} Kd6 {[%emt 0:05:06]} 52. Nh3 {[%emt 0:01:11]} Bd2 {[%emt 0:00:15]} 53. Nf4 {[%emt 0:01:47]} Bxf4 {[%emt 0:00:16]} 54. gxf4 {[%emt 0:00:04] KP-KP} Kc6 {[%emt 0:01:31]} 55. f5 {[%emt 0:00:34]} gxf5+ {[%emt 0:02:04]} 56. Kxf5 {[%emt 0:00:01] K3P-K3P} Kb5 $1 {[%emt 0:00:14]} 57. Ke6 {[%emt 0:01:23]} ({Don't take} 57. Kxf6 $6 Kb4 $16) 57... Kb4 {[%emt 0:01:37]} 58. Kd6 {[%emt 0:00:24]} (58. Kd5 $11) 58... f5 {[%emt 0:00:17][%cal Of5f4] ( -> ...f4!)} 59. f4 $1 {[%emt 0:00:04]} Kb5 {[%emt 0:00:13]} 60. Kd5 {[%emt 0:00:38]} Kb4 {[%emt 0:00:06]} 61. Kd6 {[%emt 0:00:19]} Kb5 $1 {[%emt 0:00:06]} 62. Ke5 {[%emt 0:00:26]} Kb4 {[%emt 0:00:06]} 63. Kd5 $1 {[%emt 0:00:48]} Kb5 {[%emt 0:00:08] [#]} 64. Kd6 {[%emt 0:00:04]} ({White must play} 64. Ke6 $1 $16) 64... Kb4 {[%emt 0:00:06]} 65. Kd5 {[%emt 0:00:12]} Kb5 $1 {[%emt 0:00:05]} 66. Ke5 {[%emt 0:00:55]} Kb4 {[%emt 0:00:05]} 67. Kxf5 {[%emt 0:00:05]} Kxb3 {[%emt 0:00:05] KPP-KPP} 68. Kg6 {[%emt 0:00:13]} c4 {[%emt 0:00:12]} 69. f5 {[%emt 0:00:05][%cal Of5f6]} c3 {[%emt 0:00:03]} 70. f6 {[%emt 0:00:03][%cal Of6f7]} c2 {[%emt 0:00:04]} 71. f7 {[%emt 0:00:05]} c1=Q {[%emt 0:00:04]} 72. f8=Q {[%emt 0:00:08] KQ-KQ} Qd1 {[%emt 0:02:47] Prevents Qf3+.} 73. Qf7+ {[%emt 0:00:42]} Kb2 {[%emt 0:06:06]} (73... Kb4 $11) 74. Qf6+ {[%emt 0:00:11]} (74. Kh6 $16) 74... Kb1 {[%emt 0:00:35]} (74... Kb3 $11 {keeps the balance.}) 75. Qf5+ {[%emt 0:00:06]} Ka1 {[%emt 0:00:06][%cal Od1c2] [#]} 76. Qa5+ {[%emt 0:00:12]} (76. Qxh5 $6 Qd6+ 77. Kg7 Qe7+ 78. Kh6 Qf6+ 79. Qg6 (79. Kh7 Qe7+ 80. Kh8 Qf8+ 81. Kh7 Qe7+ 82. Kh6 Qf6+ 83. Qg6 Qxh4+ 84. Kg7 Qe7+ 85. Kh6 Qh4+ 86. Kg7 Qe7+ 87. Kh6 Qh4+ $11) 79... Qxh4+ 80. Kg7 Qe7+ 81. Kh6 Qh4+ 82. Kg7 Qe7+ 83. Kh6 Qh4+ $11) (76. Kh6 $1 $16) 76... Kb2 {[%emt 0:01:13]} 77. Qb6+ {[%emt 0:00:16]} (77. Qxh5 $5 Qd6+ $8 78. Kh7 $11) 77... Ka1 {[%emt 0:00:10]} 78. Qa7+ {[%emt 0:00:10]} Kb2 {[%emt 0:00:12]} 79. Qb7+ {[%emt 0:00:08]} Ka1 {[%emt 0:00:09]} 80. Qa6+ {[%emt 0:00:02]} Kb2 {[%emt 0:00:05]} 81. Qb5+ {[%emt 0:00:02]} Ka1 {[%emt 0:00:05]} 82. Qe5+ {[%emt 0:00:04]} (82. Qxh5 $5 Qd6+ $8 83. Kf5 $11) 82... Kb1 {[%emt 0:00:55]} 83. Qf5+ {[%emt 0:02:22]} (83. Kh6 $11) 83... Ka1 $16 {[%emt 0:00:04][%cal Od1c2]} 84. Qf6+ {[%emt 0:00:05]} ({But not} 84. Qxh5 $6 Qd6+ 85. Kh7 Qe7+ 86. Kg8 Qd8+ 87. Kf7 Qd7+ 88. Kg6 Qd6+ 89. Kf5 Qc5+ 90. Kg4 Qb4+ 91. Kg3 Qe1+ 92. Kh3 Qe3+ 93. Kg4 Qe2+ 94. Kg5 Qe5+ 95. Kg6 Qe8+ 96. Kh6 Qh8+ 97. Kg6 Qe8+ 98. Kh6 Qh8+ 99. Kg6 Qe8+ $11) 84... Kb1 {[%emt 0:00:11]} 85. Qe6 {[%emt 0:00:02]} ({White should try} 85. Kh6 $16) 85... Qg4+ $11 {[%emt 0:00:07] The position is equal.} 86. Qxg4 {[%emt 0:01:57]} hxg4 {[%emt 0:00:08]} 87. h5 {[%emt 0:00:01]} Ka2 {[%emt 0:01:19] Weighted Error Value: White=0.08 (flawless) /Black=0.06 (flawless)} 1/2-1/2

[Event "20th Delhi GM Open 2023"]
[Site "New Delhi"]
[Date "2023.03.29"]
[Round "9.6"]
[White "Paichadze, Luka"]
[Black "Audi Ameya"]
[Result "1-0"]
[ECO "C45"]
[WhiteElo "2515"]
[BlackElo "2387"]
[Annotator "TA"]
[PlyCount "71"]
[EventDate "2023.03.23"]
[EventType "swiss"]
[EventCountry "IND"]
[SourceTitle "playchess.com"]
[Source "ChessBase"]
[SourceQuality "1"]
[TimeControl "5400+30"]

{[%evp 9,71,10,9,17,24,20,21,11,13,2,22,21,22,18,50,48,69,64,71,74,62,56,69,62,77,73,100,80,122,58,61,58,307,318,319,314,341,317,344,341,512,512,708,682,693,666,915,530,835,709,764,758,755,732,746,649,962,953,952,945,1203,1189,1123,1120]} 1. e4 {[%emt 0:00:03]} e5 {[%emt 0:00:03]} 2. Nf3 {[%emt 0:01:31]} Nc6 {[%emt 0:00:04]} 3. d4 {[%emt 0:00:32]} exd4 {[%emt 0:00:02]} 4. Nxd4 {[%emt 0:00:04]} Qf6 {[%emt 0:00:04]} 5. Nf3 {[%emt 0:00:55]} Bb4+ {[%emt 0:00:04]} 6. c3 {[%emt 0:00:23] C45: Scotch Game.} Bc5 {[%emt 0:00:02]} 7. Be2 {[%emt 0:00:18]} Nge7 {[%emt 0:00:05]} 8. O-O {[%emt 0:00:20] The position is equal.} h6 {[%emt 0:00:02] Prevents Bg5.} 9. a4 {[%emt 0:00:45]} O-O {[%emt 0:05:38]} 10. Na3 {[%emt 0:00:56][%cal Bb1a3,Ba3c2,Bc2e3][%mdl 32]} a6 {[%emt 0:07:50] Prevents Nb5.} 11. Nc2 {[%emt 0:00:19] [#]} Ba7 $146 {[%emt 0:04:11]} ({Predecessor:} 11... d6 12. b4 Bb6 13. a5 Ba7 14. Ra3 Qg6 15. Bd3 Bh3 16. Nh4 Qf6 17. Qh5 Ne5 {½-½ Zawadzka,J (2409)-Ortega Amarelle,M (2476) Sharjah Masters 5th 2022 (6)}) 12. Be3 {[%emt 0:00:50]} Ng6 {[%emt 0:25:37]} 13. Bxa7 {[%emt 0:04:08]} Rxa7 {[%emt 0:00:01]} 14. g3 {[%emt 0:11:24] Repels Nf4} d6 {[%emt 0:09:07]} 15. Ne3 {[%emt 0:02:21]} Bh3 {[%emt 0:02:02]} 16. Re1 {[%emt 0:00:55]} Re8 {[%emt 0:00:11]} 17. Nd2 {[%emt 0:03:25]} Raa8 {[%emt 0:06:17]} 18. f4 {[%emt 0:04:00]} Nf8 {[%emt 0:08:32]} 19. Bc4 {[%emt 0:04:00]} (19. f5 $16) 19... Be6 $14 {[%emt 0:01:59]} 20. Bf1 {[%emt 0:00:36]} Ne7 $2 {[%emt 0:02:06] A mistake that costs the game.} (20... Nh7 $14) 21. f5 $18 {[%emt 0:04:13] [#] Threatens to win with Ng4.} Bxf5 {[%emt 0:06:09]} 22. exf5 {[%emt 0:00:09] Ne4 is the strong threat.} ({Resist} 22. Nxf5 $6 Nxf5 23. exf5 Qxf5 $18) 22... d5 {[%emt 0:00:07] Prevents Ne4} 23. Nf3 {[%emt 0:04:11]} Qb6 {[%emt 0:01:23]} 24. Qd4 {[%emt 0:00:37]} c5 {[%emt 0:02:06]} (24... Qxd4 $142 25. Nxd4 Nh7) 25. Nxd5 {[%emt 0:01:56] White is clearly winning.} Qxb2 {[%emt 0:00:55]} 26. Nxe7+ {[%emt 0:00:51]} Rxe7 {[%emt 0:00:02]} 27. Qxc5 {[%emt 0:00:26]} Rd7 {[%emt 0:02:23]} 28. Qb4 {[%emt 0:04:00]} Qc2 {[%emt 0:00:09]} 29. Nd4 {[%emt 0:00:16]} Qd2 {[%emt 0:00:14]} 30. Re2 {[%emt 0:00:44]} Qg5 {[%emt 0:00:23]} 31. Rae1 {[%emt 0:00:26] [#] Black must now prevent Re8.} Qd8 {[%emt 0:01:35] Wards off Re8} 32. Bg2 {[%emt 0:05:55]} Rc8 {[%emt 0:00:53]} 33. Bxb7 {[%emt 0:03:05]} a5 {[%emt 0:00:04]} 34. Qb3 {[%emt 0:01:33]} Rb8 {[%emt 0:00:17]} 35. Nc6 {[%emt 0:04:10][%csl LRb8,LRd8]} Rdxb7 {[%emt 0:00:09]} 36. Qxb7 {[%emt 0:00:44] Weighted Error Value: White=0.26 (precise) /Black=0.43} 1-0